fUSD/lending_fUSD_20260217
["ID","MTS","AMOUNT","RATE_DAILY","PERIOD"]
[405829140,1771345842494,-596.0,9.26e-05,2]
[405829141,1771345842503,-596.0,9.315e-05,2]
[405829142,1771345842513,-500.0,9.315e-05,2]
[405829143,1771345842523,-596.0,9.37e-05,2]
[405829144,1771345842533,-596.0,9.424e-05,2]
[405829145,1771345842543,-192.089328,9.425e-05,2]
[405829146,1771345842553,-600.2655769,9.479e-05,2]
[405829147,1771345842563,-270.43,9.589e-05,2]
[405829148,1771345842572,-153.0,9.636e-05,3]
[405829149,1771345842581,-9999.99,9.67e-05,2]
[405829150,1771345842591,-14381.39,9.67e-05,2]
[405829151,1771345842601,-1401.0,9.67e-05,2]
[405829152,1771345842611,-500.0,9.863e-05,2]
[405829153,1771345842620,-10000.0,9.9e-05,2]
[405829154,1771345842630,-208.67056,9.921e-05,2]
[405829155,1771345842639,-898.32890406,0.0001,2]
[405829156,1771345842649,-310.34089999,0.0001,2]
[405829157,1771345842659,-310.34089999,0.0001,2]
[405829158,1771345842668,-310.34089999,0.0001,2]
[405829159,1771345842678,-500.0,0.0001,2]
[405829160,1771345842687,-500.0,0.0001,2]
[405829161,1771345842697,-500.0,0.0001,2]
[405829162,1771345842707,-500.0,0.0001,2]
[405829163,1771345842717,-500.0,0.0001,2]
[405829164,1771345842726,-500.0,0.0001,2]
[405829165,1771345842736,-500.0,0.0001,2]
[405829166,1771345842745,-500.0,0.0001,2]
[405829167,1771345842755,-151.0,0.0001,2]
[405829168,1771345842765,-500.0,0.0001,2]
[405829169,1771345842774,-151.0,0.0001,2]
[405829170,1771345842784,-500.0,0.0001,2]
[405829171,1771345842794,-151.0,0.0001,2]
[405829172,1771345842804,-500.0,0.0001,2]
[405829173,1771345842814,-151.0,0.0001,2]
[405829174,1771345842824,-151.0,0.0001,2]
[405829175,1771345842834,-151.0,0.0001,2]
[405829177,1771345842843,-151.0,0.0001,2]
[405829178,1771345842853,-151.0,0.0001,2]
[405829179,1771345842863,-151.0,0.0001,2]
[405829180,1771345842873,-151.0,0.0001,2]
[405829181,1771345842883,-151.0,0.0001,2]
[405829182,1771345842893,-151.0,0.0001,2]
[405829183,1771345842902,-151.0,0.0001,2]
[405829184,1771345842912,-151.0,0.0001,2]
[405829185,1771345842921,-151.0,0.0001,2]
[405829186,1771345842931,-151.0,0.0001,2]
[405829187,1771345842940,-151.0,0.0001,2]
[405829188,1771345842950,-151.0,0.0001,2]
[405829191,1771345842959,-151.0,0.0001,2]
[405829194,1771345842968,-151.0,0.0001,2]
[405829197,1771345842978,-200.0,0.0001,2]
[405829200,1771345842994,-151.0,0.0001,2]
[405829203,1771345843007,-151.0,0.0001,2]
[405829204,1771345843016,-500.0,0.0001,2]
[405829205,1771345843026,-151.0,0.0001,2]
[405829206,1771345843036,-500.0,0.0001,2]
[405829207,1771345843046,-151.0,0.0001,2]
[405829208,1771345843056,-500.0,0.0001,2]
[405829209,1771345843066,-151.0,0.0001,2]
[405829210,1771345843076,-500.0,0.0001,2]
[405829211,1771345843086,-151.0,0.0001,2]
[405829212,1771345843097,-500.0,0.0001,2]
[405829213,1771345843107,-151.0,0.0001,2]
[405829215,1771345843117,-500.0,0.0001,2]
[405829217,1771345843127,-500.0,0.0001,2]
[405829219,1771345843137,-500.0,0.0001,2]
[405829221,1771345843148,-500.0,0.0001,2]
[405829222,1771345843160,-500.0,0.0001,2]
[405829223,1771345843171,-200.0,0.0001,2]
[405829224,1771345843182,-151.0,0.0001,2]
[405829225,1771345843192,-500.0,0.0001,2]
[405829226,1771345843202,-151.0,0.0001,2]
[405829227,1771345843212,-151.0,0.0001,2]
[405829228,1771345843221,-151.0,0.0001,2]
[405829229,1771345843231,-500.0,0.0001,2]
[405829230,1771345843241,-151.0,0.0001,2]
[405829231,1771345843251,-151.0,0.0001,2]
[405829232,1771345843260,-151.0,0.0001,2]
[405829233,1771345843270,-151.0,0.0001,2]
[405829234,1771345843280,-151.0,0.0001,2]
[405829235,1771345843289,-151.0,0.0001,2]
[405829236,1771345843299,-151.0,0.0001,2]
[405829237,1771345843309,-337.0,0.0001,2]
[405829238,1771345843319,-337.0,0.0001,2]
[405829239,1771345843328,-337.85061866,0.0001,2]
[405829240,1771345843338,-758.85799306,0.0001,2]
[405829241,1771345843352,-758.85799306,0.0001,2]
[405829242,1771345843362,-270.43,0.00010046,2]
[405829243,1771345843372,-4609.0,0.00010085,2]
[405829244,1771345843383,-1252.0,0.00010089,2]
[405829245,1771345843393,-500.0,0.00010137,2]
[405829246,1771345843403,-20355.78997856,0.00010296,2]
[405829247,1771345843415,-500.0,0.00010411,2]
[405829248,1771345843425,-577.853118,0.00010491,2]
[405829249,1771345843437,-270.43,0.00010502,2]
[405829250,1771345843448,-200.0,0.00010548,2]
[405829251,1771345843458,-200.0,0.00010548,2]
[405829252,1771345843468,-500.0,0.00010548,2]
[405829253,1771345843479,-1508.0,0.00010618,2]
[405829254,1771345843489,-1508.0,0.00010618,2]
[405829255,1771345843499,-1508.0,0.00010618,2]
[405829256,1771345843510,-1508.0,0.00010618,2]
[405829257,1771345843520,-1508.0,0.00010618,2]
[405829258,1771345843530,-1508.0,0.00010618,2]
[405829259,1771345843540,-1508.0,0.00010618,2]
[405829260,1771345843550,-1508.0,0.00010618,2]
[405829261,1771345843560,-1508.0,0.00010618,2]
[405829262,1771345843570,-1508.0,0.00010618,2]
[405829263,1771345843580,-1508.0,0.00010618,2]
[405829264,1771345843590,-500.0,0.00010685,2]
[405829265,1771345843600,-858.0,0.00010958,2]
[405829266,1771345843610,-165.0,0.00010958,2]
[405829267,1771345843620,-500.0,0.00010959,2]
[405829268,1771345843630,-226.88409827,0.00010959,2]
[405829269,1771345843640,-500.0,0.00010959,2]
[405829270,1771345843650,-9419.8,0.00010959,2]
[405829271,1771345843660,-270.43,0.00010959,2]
[405829272,1771345843672,-6034.81891893,0.00011,2]
[405829273,1771345843682,-208766.0,0.00011,2]
[405829274,1771345843692,-6453.0,0.00011094,2]
[405829275,1771345843702,-200.0,0.00011096,2]
[405829277,1771345843712,-200.0,0.00011096,2]
[405829278,1771345843726,-500.0,0.00011096,2]
[405829279,1771345843736,-39267.66050184,0.00011099,2]
[405829280,1771345843746,-39267.66050178,0.00011099,2]
[405829281,1771345843756,-39267.66050178,0.00011099,2]
[405829282,1771345843766,-39267.66050178,0.00011099,2]
[405829283,1771345843776,-39267.66050178,0.00011099,2]
[405829284,1771345843786,-2129.0,0.00011102,2]
[405829285,1771345843796,-281.149841,0.0001119,2]
[405829286,1771345843805,-500.0,0.00011233,2]
[405829287,1771345843816,-5530.0,0.000114,3]
[405829288,1771345843825,-270.43,0.00011416,2]
[405829289,1771345843835,-500.0,0.00011507,2]
[405829290,1771345843845,-200.0,0.00011644,2]
[405829291,1771345843855,-200.0,0.00011644,2]
[405829292,1771345843865,-500.0,0.00011644,2]
[405829293,1771345843875,-5530.0,0.000117,5]
[405829294,1771345843886,-1108.605463,0.00011712,2]
[405829295,1771345843897,-500.0,0.00011781,2]
[405829296,1771345843907,-230.507194,0.00011782,2]
[405829297,1771345843923,-270.43,0.00011872,2]
[405829298,1771345843933,-39267.66050178,0.00012036,2]
[405829299,1771345843943,-500.0,0.00012055,2]
[405829300,1771345843953,-258.95,0.0001208,2]
[405829301,1771345843964,-500.0,0.00012173,2]
[405829302,1771345843974,-502.09858606,0.00012173,2]
[405829303,1771345843985,-501.03554845,0.00012173,2]
[405829304,1771345843994,-500.0,0.00012173,2]
[405829305,1771345844004,-500.0,0.00012173,2]
[405829306,1771345844014,-500.0,0.00012173,2]
[405829307,1771345844025,-164.61380668,0.00012173,2]
[405829308,1771345844035,-500.0,0.00012173,2]
[405829309,1771345844044,-306.10762696,0.00012173,2]
[405829310,1771345844054,-500.0,0.00012173,2]
[405829311,1771345844064,-500.0,0.00012173,2]
[405829312,1771345844074,-500.0,0.00012173,2]
[405829313,1771345844084,-608.22588366,0.00012173,2]
[405829314,1771345844094,-500.0,0.00012173,2]
[405829315,1771345844104,-500.0,0.00012173,2]
[405829316,1771345844117,-500.0,0.00012173,2]
[405829317,1771345844127,-615.3930462,0.00012173,2]
[405829318,1771345844137,-500.0,0.00012173,2]
[405829319,1771345844147,-500.0,0.00012173,2]
[405829320,1771345844157,-500.0,0.00012173,2]
[405829321,1771345844170,-500.0,0.00012173,2]
[405829322,1771345844180,-500.0,0.00012173,2]
[405829323,1771345844190,-500.0,0.00012173,2]
[405829324,1771345844200,-160.37289206,0.00012173,2]
[405829325,1771345844210,-166.78412047,0.00012173,2]
[405829326,1771345844220,-239.8459294,0.00012173,2]
[405829327,1771345844230,-501.82748142,0.00012173,2]
[405829328,1771345844239,-500.0,0.00012173,2]
[405829329,1771345844249,-500.0,0.00012173,2]
[405829330,1771345844259,-500.62727143,0.00012173,2]
[405829331,1771345844268,-500.0,0.00012173,2]
[405829332,1771345844279,-151.0,0.00012185,2]
[405829333,1771345844289,-211.412982,0.00012188,2]
[405829334,1771345844298,-12762.5325531,0.00012188,2]
[405829335,1771345844307,-200.0,0.00012192,2]
[405829336,1771345844321,-200.0,0.00012192,2]
[405829337,1771345844331,-500.0,0.00012192,2]
[405829338,1771345844340,-9035.0,0.00012203,2]
[405829339,1771345844350,-3383.656677,0.00012259,2]
[405829340,1771345844359,-270.43,0.00012329,2]
[405829341,1771345844369,-11640.74929026,0.00012371,2]
[405829342,1771345844378,-226.20610255,0.00012371,2]
[405829343,1771345844388,-166.936448,0.00012402,2]
[405829344,1771345844397,-200.0,0.00012458,2]
[405829345,1771345844407,-200.0,0.00012458,2]
[405829346,1771345844418,-200.0,0.00012458,2]
[405829347,1771345844428,-218.0,0.00012458,2]
[405829348,1771345844443,-308.39558699,0.000125,2]
[405829349,1771345844453,-180.0,0.00012554,2]
[405829350,1771345844463,-153.0,0.00012601,3]
[405829351,1771345844474,-237.28842339,0.00012645,2]
[405829352,1771345844483,-500.0,0.00012645,2]
[405829353,1771345844493,-214.0121963,0.00012645,2]
[405829354,1771345844504,-500.0,0.000127,2]
[405829355,1771345844516,-1000.0,0.00012721,2]
[405829356,1771345844526,-1000.0,0.00012721,2]
[405829357,1771345844536,-1000.0,0.00012721,2]
[405829358,1771345844546,-500.0,0.00012721,2]
[405829359,1771345844555,-844.71223806,0.00012721,2]
[405829360,1771345844565,-500.0,0.00012721,2]
[405829361,1771345844575,-500.0,0.00012721,2]
[405829362,1771345844584,-428.11420057,0.00012721,2]
[405829363,1771345844594,-1000.0,0.00012734,2]
[405829364,1771345844603,-200.0,0.0001274,2]
[405829365,1771345844614,-200.0,0.0001274,2]
[405829366,1771345844624,-500.0,0.0001274,2]
[405829367,1771345844634,-500.0,0.00012755,2]
[405829368,1771345844644,-500.0,0.00012809,2]
[405829369,1771345844654,-642965.1379,0.00012819,2]
[405829370,1771345844665,-1000.0,0.00012819,2]
[405829371,1771345844675,-1000.0,0.00012819,2]
[405829372,1771345844684,-1000.0,0.00012819,2]
[405829373,1771345844695,-1426.886424,0.00012819,2]
[405829374,1771345844705,-1000.0,0.00012819,2]
[405829375,1771345844714,-1000.0,0.00012819,2]
[405829376,1771345844724,-1000.0,0.00012819,2]
[405829377,1771345844734,-1000.0,0.00012819,2]
[405829378,1771345844744,-887.507706,0.00012819,2]
[405829379,1771345844754,-151.0,0.00012819,2]
[405829380,1771345844764,-151.0,0.00012819,2]
[405829381,1771345844775,-151.0,0.00012819,2]
[405829382,1771345844784,-151.0,0.00012819,2]
[405829383,1771345844794,-1426.886424,0.00012819,2]
[405829384,1771345844803,-1426.886424,0.00012819,2]
[405829385,1771345844813,-1426.886424,0.00012819,2]
[405829386,1771345844823,-500.0,0.00012864,2]
[405829387,1771345844832,-947.1253165,0.00012893,2]
[405829388,1771345844842,-226.42090261,0.00012893,2]
[405829389,1771345844851,-119222.30808405,0.000129,2]
[405829390,1771345844861,-200.0,0.00012906,2]
[405829391,1771345844871,-165.38653987,0.00012906,2]
[405829392,1771345844882,-581.09430001,0.00012906,2]
[405829393,1771345844891,-200.0,0.00012906,2]
[405829394,1771345844901,-1000.0,0.00012906,2]
[405829395,1771345844919,-389.83552787,0.00012906,2]
[405829396,1771345844930,-500.0,0.00012919,2]
[405829397,1771345844940,-1783.0,0.00012919,2]
[405829398,1771345844950,-500.0,0.00012974,2]
[405829399,1771345844960,-5623.26156693,0.00013,2]
[405829400,1771345844970,-500.0,0.00013029,2]
[405829401,1771345844980,-1000.0,0.00013033,2]
[405829402,1771345844990,-200.0,0.00013035,2]
[405829403,1771345845000,-200.0,0.00013035,2]
[405829404,1771345845010,-39267.66050178,0.00013045,2]
[405829405,1771345845020,-28272.67546645,0.00013045,2]
[405829406,1771345845030,-5362.79805645,0.0001305,2]
[405829407,1771345845040,-500.0,0.00013083,2]
[405829408,1771345845050,-500.0,0.00013138,2]
[405829409,1771345845060,-200.0,0.00013165,2]
[405829410,1771345845070,-200.0,0.00013165,2]
[405829411,1771345845081,-3003.49774087,0.00013183,2]
[405829412,1771345845091,-200.0,0.00013191,2]
[405829413,1771345845102,-500.0,0.00013193,2]
[405829414,1771345845112,-500.0,0.00013248,2]
[405829415,1771345845122,-494.73225771,0.00013268,2]
[405829416,1771345845132,-1502.39964348,0.00013268,2]
[405829417,1771345845142,-432.93855102,0.00013268,2]
[405829418,1771345845152,-200.0,0.00013288,2]
[405829419,1771345845162,-200.0,0.00013288,2]
[405829420,1771345845172,-500.0,0.00013288,2]
[405829421,1771345845182,-200.0,0.00013297,2]
[405829422,1771345845191,-200.0,0.00013297,2]
[405829423,1771345845202,-224.65460803,0.00013303,2]
[405829424,1771345845212,-200.0,0.00013323,2]
[405829425,1771345845221,-6650.0,0.00013423,2]
[405829426,1771345845230,-3240.0,0.00013425,2]
[405829427,1771345845240,-200.0,0.0001343,2]
[405829428,1771345845250,-200.0,0.0001343,2]
[405829429,1771345845260,-1000.0,0.000135,2]
[405829430,1771345845270,-151.0,0.00013598,2]
[405829431,1771345845280,-32850.4601,0.00013598,2]
[405829432,1771345845294,-259.7041,0.00013598,2]
[405829433,1771345845304,-1000.0,0.00013598,2]
[405829434,1771345845314,-12762.5325531,0.00013656,2]
[405829438,1771345845648,-758.85799306,0.00013688,2]
[405829439,1771345845688,-156.717,0.00013697,2]
[405829440,1771345845698,-500.0,0.00013698,2]
[405829441,1771345845709,-500.0,0.00013698,2]
[405829442,1771345845719,-500.0,0.00013698,2]
[405829443,1771345845728,-500.0,0.00013698,2]
[405829444,1771345845737,-500.0,0.00013698,2]
[405829445,1771345845747,-500.0,0.00013698,2]
[405829446,1771345845756,-500.0,0.00013698,2]
[405829447,1771345845766,-500.0,0.00013698,2]
[405829448,1771345845776,-500.0,0.00013698,2]
[405829449,1771345845786,-500.0,0.00013698,2]
[405829450,1771345845795,-597.52702797,0.00013698,2]
[405829451,1771345845804,-500.0,0.00013698,2]
[405829452,1771345845814,-500.0,0.00013698,2]
[405829453,1771345845823,-500.0,0.00013698,2]
[405829454,1771345845833,-500.0,0.00013698,2]
[405829455,1771345845843,-500.0,0.00013698,2]
[405829456,1771345845852,-500.0,0.00013698,2]
[405829457,1771345845863,-500.0,0.00013698,2]
[405829458,1771345845872,-500.0,0.00013698,2]
[405829459,1771345845882,-500.0,0.00013698,2]
[405829460,1771345845891,-391.46615766,0.00013698,2]
[405829461,1771345845902,-2052.7,0.00013698,2]
[405829462,1771345845917,-2052.7,0.00013698,2]
[405829463,1771345845926,-2052.7,0.00013698,2]
[405829464,1771345845936,-2052.7,0.00013698,2]
[405829465,1771345845946,-2052.7,0.00013698,2]
[405829466,1771345845956,-2052.7,0.00013698,2]
[405829467,1771345845966,-2052.7,0.00013698,2]
[405829468,1771345845976,-2052.7,0.00013698,2]
[405829469,1771345845986,-2052.7,0.00013698,2]
[405829470,1771345845996,-2052.7,0.00013698,2]
[405829471,1771345846006,-2052.7,0.00013698,2]
[405829472,1771345846015,-2052.7,0.00013698,2]
[405829473,1771345846024,-2052.7,0.00013698,2]
[405829474,1771345846034,-2052.7,0.00013698,2]
[405829475,1771345846043,-2052.7,0.00013698,2]
[405829476,1771345846053,-2052.7,0.00013698,2]
[405829477,1771345846063,-2052.7,0.00013698,2]
[405829478,1771345846072,-2052.7,0.00013698,2]
[405829479,1771345846083,-2052.7,0.00013698,2]
[405829480,1771345846093,-2052.7,0.00013698,2]
[405829481,1771345846103,-2052.7,0.00013698,2]
[405829482,1771345846113,-2052.7,0.00013698,2]
[405829483,1771345846123,-2052.7,0.00013698,2]
[405829484,1771345846133,-2052.77678348,0.00013698,2]
[405829485,1771345846143,-500.0,0.00013698,2]
[405829486,1771345846157,-500.0,0.00013698,2]
[405829487,1771345846171,-500.0,0.00013698,2]
[405829488,1771345846181,-500.0,0.00013698,2]
[405829489,1771345846192,-571.27519115,0.00013698,2]
[405829490,1771345846202,-836.63,0.00013698,2]
[405829491,1771345846211,-836.63,0.00013698,2]
[405829492,1771345846222,-836.63,0.00013698,2]
[405829493,1771345846232,-836.63,0.00013698,2]
[405829494,1771345846243,-836.63,0.00013698,2]
[405829495,1771345846253,-836.63,0.00013698,2]
[405829496,1771345846262,-836.63,0.00013698,2]
[405829497,1771345846272,-836.63,0.00013698,2]
[405829498,1771345846282,-836.63,0.00013698,2]
[405829499,1771345846292,-836.63,0.00013698,2]
[405829500,1771345846302,-836.63,0.00013698,2]
[405829501,1771345846311,-836.63,0.00013698,2]
[405829502,1771345846322,-836.63,0.00013698,2]
[405829503,1771345846332,-836.63,0.00013698,2]
[405829505,1771345846342,-836.63,0.00013698,2]
[405829507,1771345846356,-960.44,0.00013698,2]
[405829508,1771345846366,-836.63,0.00013698,2]
[405829509,1771345846375,-960.44,0.00013698,2]
[405829510,1771345846386,-960.44,0.00013698,2]
[405829511,1771345846405,-960.44,0.00013698,2]
[405829512,1771345846416,-960.44,0.00013698,2]
[405829513,1771345846426,-960.44,0.00013698,2]
[405829514,1771345846438,-960.44,0.00013698,2]
[405829515,1771345846448,-960.44,0.00013698,2]
[405829516,1771345846457,-960.44,0.00013698,2]
[405829517,1771345846467,-960.44,0.00013698,2]
[405829518,1771345846478,-960.44,0.00013698,2]
[405829519,1771345846488,-960.44,0.00013698,2]
[405829520,1771345846497,-960.44,0.00013698,2]
[405829521,1771345846508,-960.44,0.00013698,2]
[405829522,1771345846518,-960.44,0.00013698,2]
[405829523,1771345846528,-960.44,0.00013698,2]
[405829524,1771345846537,-960.44,0.00013698,2]
[405829525,1771345846547,-960.44,0.00013698,2]
[405829526,1771345846556,-960.44,0.00013698,2]
[405829527,1771345846566,-1563.42,0.00013698,2]
[405829528,1771345846575,-1563.42,0.00013698,2]
[405829529,1771345846585,-1563.42,0.00013698,2]
[405829530,1771345846595,-1563.42,0.00013698,2]
[405829531,1771345846604,-1563.42,0.00013698,2]
[405829532,1771345846614,-1563.42,0.00013698,2]
[405829533,1771345846623,-1563.42,0.00013698,2]
[405829534,1771345846633,-1563.42,0.00013698,2]
[405829535,1771345846644,-1563.42,0.00013698,2]
[405829536,1771345846653,-1563.42,0.00013698,2]
[405829537,1771345846663,-1563.42,0.00013698,2]
[405829538,1771345846672,-1563.42,0.00013698,2]
[405829539,1771345846683,-1563.42,0.00013698,2]
[405829540,1771345846692,-1563.42,0.00013698,2]
[405829541,1771345846702,-1563.42,0.00013698,2]
[405829542,1771345846711,-1563.42,0.00013698,2]
[405829543,1771345846721,-500.0,0.00013698,2]
[405829544,1771345846730,-500.0,0.00013698,2]
[405829545,1771345846740,-500.0,0.00013698,2]
[405829546,1771345846750,-500.0,0.00013698,2]
[405829547,1771345846759,-500.0,0.00013698,2]
[405829548,1771345846769,-500.0,0.00013698,2]
[405829549,1771345846778,-500.0,0.00013698,2]
[405829550,1771345846787,-500.0,0.00013698,2]
[405829551,1771345846797,-500.0,0.00013698,2]
[405829552,1771345846807,-500.0,0.00013698,2]
[405829553,1771345846816,-500.0,0.00013698,2]
[405829554,1771345846826,-500.0,0.00013698,2]
[405829555,1771345846835,-500.0,0.00013698,2]
[405829556,1771345846845,-500.0,0.00013698,2]
[405829557,1771345846854,-500.0,0.00013698,2]
[405829558,1771345846864,-500.0,0.00013698,2]
[405829559,1771345846873,-500.0,0.00013698,2]
[405829560,1771345846883,-500.0,0.00013698,2]
[405829561,1771345846893,-500.0,0.00013698,2]
[405829562,1771345846902,-500.0,0.00013698,2]
[405829563,1771345846914,-500.0,0.00013698,2]
[405829564,1771345846923,-500.0,0.00013698,2]
[405829565,1771345846933,-500.0,0.00013698,2]
[405829566,1771345846943,-500.0,0.00013698,2]
[405829567,1771345846953,-500.0,0.00013698,2]
[405829568,1771345846963,-500.0,0.00013698,2]
[405829569,1771345846973,-500.0,0.00013698,2]
[405829570,1771345846983,-438.72753781,0.00013698,2]
[405829571,1771345846993,-500.0,0.00013698,2]
[405829572,1771345847003,-500.0,0.00013698,2]
[405829573,1771345847012,-500.0,0.00013698,2]
[405829574,1771345847021,-500.0,0.00013698,2]
[405829575,1771345847031,-500.0,0.00013698,2]
[405829576,1771345847040,-500.0,0.00013698,2]
[405829577,1771345847050,-500.0,0.00013698,2]
[405829578,1771345847060,-500.0,0.00013698,2]
[405829579,1771345847069,-1435.37,0.00013698,2]
[405829580,1771345847079,-1435.37,0.00013698,2]
[405829581,1771345847089,-1435.37,0.00013698,2]
[405829582,1771345847099,-1435.37,0.00013698,2]
[405829583,1771345847108,-1435.37,0.00013698,2]
[405829584,1771345847118,-1435.37,0.00013698,2]
[405829585,1771345847127,-1435.37,0.00013698,2]
[405829586,1771345847137,-1435.37,0.00013698,2]
[405829587,1771345847146,-1435.37,0.00013698,2]
[405829588,1771345847156,-1435.37,0.00013698,2]
[405829589,1771345847166,-1435.37,0.00013698,2]
[405829590,1771345847175,-1435.37,0.00013698,2]
[405829591,1771345847185,-1435.37,0.00013698,2]
[405829592,1771345847195,-1435.37,0.00013698,2]
[405829593,1771345847204,-1435.37,0.00013698,2]
[405829594,1771345847213,-1435.37,0.00013698,2]
[405829595,1771345847223,-1435.37,0.00013698,2]
[405829596,1771345847233,-1435.37,0.00013698,2]
[405829597,1771345847242,-1435.37,0.00013698,2]
[405829598,1771345847252,-500.0,0.00013698,2]
[405829599,1771345847262,-500.0,0.00013698,2]
[405829600,1771345847271,-500.0,0.00013698,2]
[405829601,1771345847280,-500.0,0.00013698,2]
[405829602,1771345847290,-500.0,0.00013698,2]
[405829603,1771345847299,-500.0,0.00013698,2]
[405829604,1771345847309,-500.0,0.00013698,2]
[405829605,1771345847318,-500.0,0.00013698,2]
[405829606,1771345847327,-500.0,0.00013698,2]
[405829607,1771345847339,-500.0,0.00013698,2]
[405829608,1771345847349,-500.0,0.00013698,2]
[405829609,1771345847358,-500.0,0.00013698,2]
[405829610,1771345847368,-200.92210999,0.00013698,2]
[405829611,1771345847378,-1071.6,0.00013698,2]
[405829612,1771345847387,-1071.6,0.00013698,2]
[405829613,1771345847397,-1071.6,0.00013698,2]
[405829614,1771345847406,-1071.6,0.00013698,2]
[405829615,1771345847418,-1071.6,0.00013698,2]
[405829616,1771345847428,-1071.6,0.00013698,2]
[405829617,1771345847441,-1071.6,0.00013698,2]
[405829618,1771345847451,-1071.6,0.00013698,2]
[405829619,1771345847460,-1071.6,0.00013698,2]
[405829620,1771345847469,-1071.6,0.00013698,2]
[405829621,1771345847479,-1071.6,0.00013698,2]
[405829622,1771345847489,-1071.6,0.00013698,2]
[405829623,1771345847498,-1071.6,0.00013698,2]
[405829624,1771345847508,-1071.6,0.00013698,2]
[405829625,1771345847517,-1071.6,0.00013698,2]
[405829626,1771345847527,-1071.6,0.00013698,2]
[405829627,1771345847536,-1071.6,0.00013698,2]
[405829628,1771345847546,-1071.6,0.00013698,2]
[405829629,1771345847555,-1071.6,0.00013698,2]
[405829630,1771345847565,-500.0,0.00013698,2]
[405829631,1771345847575,-500.0,0.00013698,2]
[405829632,1771345847584,-500.0,0.00013698,2]
[405829633,1771345847595,-500.0,0.00013698,2]
[405829634,1771345847604,-500.0,0.00013698,2]
[405829635,1771345847614,-430.60599151,0.00013698,2]
[405829636,1771345847624,-500.0,0.00013698,2]
[405829637,1771345847633,-243.00147322,0.00013698,2]
[405829638,1771345847644,-500.0,0.00013698,2]
[405829639,1771345847654,-500.0,0.00013698,2]
[405829640,1771345847665,-500.0,0.00013698,2]
[405829641,1771345847675,-500.0,0.00013698,2]
[405829642,1771345847685,-500.0,0.00013698,2]
[405829643,1771345847694,-500.0,0.00013698,2]
[405829644,1771345847704,-500.0,0.00013698,2]
[405829645,1771345847714,-500.0,0.00013698,2]
[405829646,1771345847724,-500.0,0.00013698,2]
[405829647,1771345847733,-500.0,0.00013698,2]
[405829648,1771345847743,-500.0,0.00013698,2]
[405829649,1771345847753,-307.56,0.00013698,2]
[405829650,1771345847763,-151.0,0.00013698,2]
[405829651,1771345847773,-153.344252,0.00013698,2]
[405829652,1771345847783,-704.93,0.00013699,2]
[405829653,1771345847793,-712.99,0.00013699,2]
[405829654,1771345847803,-289.007678,0.00013699,2]
[405829655,1771345847812,-151.02878078,0.00013699,2]
[405829656,1771345847822,-200.0,0.00013782,2]
[405829657,1771345847831,-200.0,0.00013836,2]
[405829658,1771345847841,-200.0,0.00013836,2]
[405829659,1771345847851,-500.0,0.00013836,2]
[405829660,1771345847861,-151.0,0.00013869,2]